bitfinex/quotes_ETHUSD_20230109
["timestamp","ask_amount","ask_price","bid_price","bid_amount"]
[1673272609161,1.13067435,1319.9,1319.8,39.16652576]
[1673272609376,1.13067435,1319.9,1319.8,31.60739782]
[1673272609625,2.89268587,1320.0,1319.8,31.60739782]
[1673272609789,2.8267363,1320.0,1319.9,3.79766064]
[1673272609999,2.8267363,1320.0,1319.9,26.52665064]
[1673272610211,2.82673943,1320.0,1319.9,26.58920576]
[1673272610531,1.69601152,1320.0,1319.9,30.50747654]
[1673272610743,1.69601152,1320.0,1319.9,30.73747654]
[1673272611400,2.82723868,1320.0,1319.9,30.73747654]
[1673272612461,1.69601152,1320.0,1319.9,30.73747654]
[1673272612942,1.69801152,1320.0,1319.9,30.73547654]
[1673272613273,2.827441,1320.0,1319.9,30.73747654]
[1673272614782,1.69601152,1320.0,1319.9,30.73747654]
[1673272615885,2.82806349,1320.0,1319.9,30.73747654]
[1673272616092,1.69601152,1320.0,1319.9,30.73747654]
[1673272616358,2.82797538,1320.0,1319.9,30.73747654]
[1673272616665,3.95736021,1320.0,1319.9,30.73747654]
[1673272617683,2.82903671,1320.0,1319.9,33.73747654]
[1673272617890,1.13302519,1320.0,1319.9,33.73747654]
[1673272618345,2.82903671,1320.0,1319.9,33.73747654]
[1673272619148,2.82903671,1320.0,1319.9,33.73134812]
[1673272620010,1.69601152,1320.0,1319.9,33.73134812]
[1673272620403,1.69601152,1320.0,1319.9,68.73134812]
[1673272622663,1.69251744,1320.0,1319.9,68.73134812]
[1673272623395,27.81477784,1320.0,1319.9,46.00235812]
[1673272623569,5.09579611,1320.0,1319.9,42.08408734]
[1673272623975,5.09598635,1320.0,1319.9,49.66041734]
[1673272624229,5.09598635,1320.0,1319.9,64.58307734]
[1673272625236,5.09598635,1320.0,1319.9,57.00674734]
[1673272625714,5.09598635,1320.0,1319.9,49.43041734]
[1673272625879,5.09598635,1320.0,1319.9,63.66676728]
[1673272626548,2.2698072,1320.0,1319.9,63.66676728]
[1673272626720,2.2658072,1320.0,1319.9,71.24309728]
[1673272627655,2.2658072,1320.0,1319.9,85.24309728]
[1673272628039,2.2658072,1320.0,1319.9,77.66676728]
[1673272628248,5.09198635,1320.0,1319.9,85.24309728]
[1673272628499,5.09598635,1320.0,1319.9,85.24309728]
[1673272628809,5.09598635,1320.0,1319.9,71.24309728]
[1673272629022,5.09598635,1320.0,1319.9,85.24309728]
[1673272630461,2.2698072,1320.0,1319.9,50.24309728]
[1673272630687,2.2658072,1320.0,1319.9,50.24309728]
[1673272632659,5.09198635,1320.0,1319.9,50.24309728]
[1673272632853,5.09598635,1320.0,1319.9,50.24309728]
[1673272633062,2.83017915,1320.0,1319.9,0.06255512]
[1673272633305,31.81935598,1320.0,1319.6,29.84255512]
[1673272633499,2.8315948,1319.7,1319.6,3.86021576]
[1673272633750,1.69895688,1319.7,1319.6,11.37571064]
[1673272633917,2.83124984,1319.7,1319.6,19.01631576]
[1673272634127,6.18172323,1319.7,1319.6,0.06255512]
[1673272634379,6.18172323,1319.7,1319.4,37.35907]
[1673272634380,6.18572323,1319.7,1319.4,29.84255512]
[1673272634642,1.13215183,1319.5,1319.4,3.86021576]
[1673272634818,2.83037957,1319.5,1319.4,3.79966064]
[1673272634970,2.83037957,1319.5,1319.4,3.79766064]
[1673272635310,1.69822774,1319.5,1319.4,3.79766064]
[1673272635504,1.69822774,1319.5,1319.3,0.21857174]
[1673272635714,1.13181436,1319.4,1319.3,3.95367726]
[1673272635965,2.8960421,1319.5,1319.3,6.83511096]
[1673272636124,2.8960421,1319.5,1319.3,6.89766608]
[1673272636125,2.8300421,1319.5,1319.3,6.89766608]
[1673272636330,2.8300421,1319.5,1319.4,3.0]
[1673272636978,2.8300421,1319.5,1319.3,33.17550238]
[1673272637213,2.8300421,1319.5,1319.3,25.59573238]
[1673272637540,2.8300421,1319.5,1319.3,33.17550238]
[1673272637760,2.8300421,1319.5,1319.3,19.17550238]
[1673272637906,2.8300421,1319.5,1319.3,4.01623238]
[1673272638122,3.3987421,1319.5,1319.3,0.15601662]
[1673272638392,2.8300421,1319.5,1319.3,0.15601662]
[1673272638589,2.8300421,1319.5,1319.3,22.89524662]
[1673272638590,1.13181436,1319.5,1319.3,22.89524662]
[1673272638763,1.13181436,1319.5,1319.3,22.95780174]
[1673272640128,1.13181436,1319.5,1319.3,15.37803174]
[1673272640675,2.8300421,1319.5,1319.3,15.37803174]
[1673272641218,1.13181436,1319.5,1319.3,22.95780174]
[1673272641599,1.13181436,1319.5,1319.3,0.21857174]
[1673272641805,2.8300421,1319.5,1319.3,0.15601662]
[1673272642012,1.13181436,1319.5,1319.3,7.73572662]
[1673272642269,1.13181436,1319.5,1319.3,7.79828174]
[1673272642603,1.13181436,1319.5,1319.3,15.37805174]
[1673272642956,1.13181436,1319.5,1319.3,22.95782174]
[1673272643515,1.13181436,1319.5,1319.3,15.37805174]
[1673272644146,1.13181436,1319.5,1319.3,50.37805174]
[1673272644678,1.13181436,1319.5,1319.3,57.95782174]
[1673272644998,11.6537421,1319.6,1319.3,50.37805174]
[1673272645215,2.8300421,1319.5,1319.3,50.37805174]
[1673272645373,12.71054436,1319.5,1319.3,35.21857174]
[1673272645583,3.87581436,1319.4,1319.3,35.21857174]
[1673272645793,19.03421436,1319.4,1319.3,35.21614162]
[1673272646051,28.8844421,1319.4,1319.3,0.21614162]
[1673272646212,25.37762034,1319.4,1319.3,0.1535865]
[1673272646424,34.65504808,1319.4,1319.3,0.1535865]
[1673272646648,21.3052421,1319.4,1319.3,0.1535865]
[1673272646953,19.60701436,1319.4,1319.3,0.1535865]
[1673272647327,23.60701436,1319.4,1319.3,0.1535865]
[1673272647490,8.44861436,1319.4,1319.3,0.1535865]
[1673272647893,23.60701436,1319.4,1319.3,0.1535865]
[1673272648156,16.02781436,1319.4,1319.3,0.1535865]
[1673272648315,8.44861436,1319.4,1319.3,0.1535865]
[1673272648525,7.3168,1319.4,1319.3,0.1535865]
[1673272648767,3.3168,1319.4,1319.3,0.1535865]
[1673272648996,3.3128,1319.4,1319.3,0.1535865]
[1673272649826,2.744,1319.4,1319.3,7.7333565]
[1673272650039,2.744,1319.4,1319.3,0.21614162]
[1673272650230,2.744,1319.4,1319.3,0.1535865]
[1673272651888,10.0418,1319.5,1319.3,15.3131265]
[1673272652152,0.5727,1319.5,1319.3,7.79591162]
[1673272652365,0.5687,1319.5,1319.3,7.79591162]
[1673272653393,0.5687,1319.5,1319.3,1.70198236]
[1673272653604,0.5687,1319.5,1319.3,1.63942724]
[1673272654301,0.5687,1319.5,1319.2,22.94601972]
[1673272654516,8.14746,1319.5,1319.2,29.34157302]
[1673272654729,15.73022,1319.5,1319.2,14.18145302]
[1673272655297,0.004,1319.5,1319.3,3.79766064]
[1673272655460,10.53521436,1319.6,1319.3,3.79766064]
[1673272655461,10.47721436,1319.6,1319.4,26.53526064]
[1673272655676,10.47721436,1319.6,1319.4,22.45311082]
[1673272655677,9.3454,1319.6,1319.4,22.45311082]
[1673272656198,0.5727,1319.6,1319.4,22.45311082]
[1673272656409,0.5687,1319.6,1319.4,30.03231082]
[1673272656840,13.6392421,1319.7,1319.4,30.03231082]
[1673272657057,13.5772421,1319.7,1319.4,30.03231082]
[1673272657373,13.5772421,1319.7,1319.4,22.45311082]
[1673272657782,1.13181436,1319.6,1319.4,22.45311082]
[1673272658516,1.13181436,1319.6,1319.4,14.87381082]
[1673272658720,1.13181436,1319.6,1319.4,22.45301082]
[1673272659142,1.13181436,1319.6,1319.4,30.03221082]
[1673272660536,18.7717314,1319.7,1319.5,26.53352064]
[1673272660537,6.8960421,1319.7,1319.5,26.53352064]
[1673272660748,6.8960421,1319.7,1319.6,26.53181064]
[1673272660749,1.13581436,1319.7,1319.6,26.53181064]
[1673272660943,1.76022774,1319.8,1319.6,26.59436576]
[1673272660944,1.13181436,1319.8,1319.6,26.59436576]
[1673272661168,2.8960421,1319.9,1319.7,3.79766064]
[1673272661373,11.63910366,1320.0,1319.8,11.37456064]
[1673272661374,2.8960421,1320.0,1319.8,11.37456064]
[1673272661583,2.8300421,1320.0,1319.9,11.37399064]
[1673272661790,2.8300421,1320.0,1319.9,3.86021576]
[1673272662009,2.8300421,1320.0,1319.9,3.79766064]
[1673272662521,2.82626877,1320.0,1319.9,11.37399064]
[1673272662734,2.82626877,1320.0,1319.9,11.43654576]
[1673272663080,2.82626877,1320.0,1319.9,3.86021576]
[1673272663233,2.82626877,1320.0,1319.9,3.79766064]
[1673272663921,2.82626877,1320.0,1319.9,11.37399064]
[1673272664130,1.12804103,1320.0,1319.9,11.43654576]
[1673272664957,1.12804103,1320.0,1319.9,3.86021576]
[1673272665137,1.12804103,1320.0,1319.9,3.79766064]
[1673272665609,2.82626877,1320.0,1319.9,3.79766064]
[1673272665765,1.12804103,1320.0,1319.9,3.79766064]
[1673272665976,2.82626877,1320.0,1319.9,11.37399064]
[1673272666186,2.82626877,1320.0,1319.9,11.43654576]
[1673272666445,2.82626877,1320.0,1319.9,3.86021576]
[1673272666660,2.82626877,1320.0,1319.9,3.79766064]
[1673272666970,1.69822774,1320.0,1319.9,3.79766064]
[1673272667176,1.69822774,1320.0,1319.9,11.37399064]
[1673272667391,1.69822774,1320.0,1319.9,11.43654576]
[1673272669283,2.82678708,1320.0,1319.9,11.43654576]
[1673272669601,6.33030366,1320.1,1319.9,30.62718234]
[1673272669602,2.89278708,1320.1,1319.9,30.62718234]
[1673272669942,2.89278708,1320.1,1320.0,3.79766064]
[1673272669943,2.82678708,1320.1,1320.0,3.79766064]
[1673272670107,2.82678708,1320.1,1320.0,11.37341064]
[1673272670444,2.82678708,1320.1,1320.0,19.01171576]
[1673272671263,2.82678708,1320.1,1320.0,21.93641799]
[1673272671908,1.12855934,1320.1,1320.0,29.51216799]
[1673272673286,12.90567653,1320.2,1320.0,29.74216799]
[1673272673287,2.96363221,1320.2,1320.0,29.74216799]
[1673272673443,2.89763221,1320.2,1320.1,4.02766064]
[1673272673656,2.89763221,1320.2,1320.1,26.75320064]
[1673272674021,2.89763221,1320.2,1320.1,26.81271733]
[1673272674188,1.19940447,1320.2,1320.1,26.81271733]
[1673272674393,2.89763221,1320.2,1320.1,19.23753733]
[1673272675908,1.19940447,1320.2,1320.1,26.81271733]
[1673272676742,1.19940447,1320.2,1320.1,30.54403429]
[1673272677269,0.07084513,1320.2,1320.1,30.54403429]
[1673272677499,1.19940447,1320.2,1320.1,30.54403429]
[1673272678103,0.07084513,1320.2,1320.1,30.54403429]
[1673272678324,0.02084513,1320.2,1320.1,30.54403429]
[1673272679470,0.02084513,1320.2,1320.1,7.81849429]
[1673272679637,1.14940447,1320.2,1320.1,19.23753733]
[1673272679847,0.02084513,1320.2,1320.1,19.23753733]
[1673272680110,1.14940447,1320.2,1320.1,19.23753733]
[1673272680324,0.02084513,1320.2,1320.1,26.81271733]
[1673272682751,0.01799694,1320.2,1320.1,26.81271733]
[1673272682950,0.01799694,1320.2,1320.1,30.68190029]
[1673272684016,0.05770662,1320.2,1320.1,30.68190029]
[1673272684680,0.05770662,1320.2,1320.1,51.8194181]
[1673272685005,0.05770662,1320.2,1320.1,56.1984181]
[1673272685006,0.01799694,1320.2,1320.1,56.1984181]
[1673272685781,0.01799694,1320.2,1320.1,50.42790029]
[1673272686002,0.01799694,1320.2,1320.1,56.19998444]
[1673272686556,0.01799694,1320.2,1320.1,50.42790029]
[1673272687149,0.01799694,1320.2,1320.1,56.19816975]
[1673272687480,0.01799694,1320.2,1320.1,50.42790029]
[1673272687796,0.01799694,1320.2,1320.1,56.19759917]
[1673272689080,0.01799694,1320.2,1320.1,50.42790029]
[1673272689290,0.01799694,1320.2,1320.1,56.19766749]
[1673272689616,0.01799694,1320.2,1320.1,56.19766748]
[1673272690350,0.01799694,1320.2,1320.1,50.45128059]
[1673272690531,1e-08,1320.2,1320.1,56.24742273]
[1673272692025,1e-08,1320.2,1320.1,56.24542273]
[1673272692239,1e-08,1320.2,1320.1,56.24742273]
[1673272696308,1e-08,1320.2,1320.1,50.47757059]
[1673272696520,1e-08,1320.2,1320.1,56.24724594]
[1673272696968,1e-08,1320.2,1320.1,50.47757059]
[1673272697349,1e-08,1320.2,1320.1,56.24503496]
[1673272698292,1e-08,1320.2,1320.1,49.09857059]
[1673272698498,1e-08,1320.2,1320.1,54.86550222]
[1673272699445,1e-08,1320.2,1320.1,54.83921222]
[1673272700495,1e-08,1320.2,1320.1,72.26711222]
[1673272700705,1e-08,1320.2,1320.1,72.26712606]
[1673272701967,1e-08,1320.2,1320.1,66.50018059]
[1673272702229,1e-08,1320.2,1320.1,58.92500059]
[1673272702389,1e-08,1320.2,1320.1,65.13318059]
[1673272708166,1e-08,1320.2,1320.1,70.89873446]
[1673272708687,1e-08,1320.2,1320.1,70.9004537]
[1673272708936,1e-08,1320.2,1320.1,72.2794537]
[1673272709763,1e-08,1320.2,1320.1,66.51218059]
[1673272710062,1e-08,1320.2,1320.1,35.72944029]
[1673272710278,1e-08,1320.2,1320.1,47.01061733]
[1673272711779,1e-08,1320.2,1320.1,47.24061733]
[1673272713474,1e-08,1320.2,1320.1,47.23783466]
[1673272714310,1e-08,1320.2,1320.1,47.19812498]
[1673272715474,1e-08,1320.2,1320.1,48.57712498]
[1673272715789,13.64395819,1320.4,1320.2,22.7238]
[1673272715790,11.37965453,1320.4,1320.2,22.7238]
[1673272715950,11.31765453,1320.4,1320.3,4.02766064]
[1673272716156,11.31765453,1320.4,1320.3,26.74975064]
[1673272716403,10.74935453,1320.4,1320.3,26.81230576]
[1673272716688,1.75845453,1320.4,1320.3,28.18330576]
[1673272716904,1.75445453,1320.4,1320.3,28.18330576]
[1673272717112,4.01875819,1320.4,1320.3,11.66424576]
[1673272717438,4.01875819,1320.4,1320.3,19.23827576]
[1673272717857,4.01825914,1320.4,1320.3,26.81230576]
[1673272718066,2.32053045,1320.4,1320.3,26.81230576]
[1673272718280,4.01825476,1320.4,1320.3,26.81230576]
[1673272718926,1.7539511,1320.4,1320.3,26.81230576]
[1673272719168,1.7539511,1320.4,1320.3,19.23827576]
[1673272719169,4.01825476,1320.4,1320.3,19.23827576]
[1673272719837,2.32053045,1320.4,1320.3,19.23827576]
[1673272720053,2.32053045,1320.4,1320.3,26.81230576]
[1673272720257,2.32053045,1320.4,1320.3,19.23827576]
[1673272720512,5.15212526,1320.4,1320.3,26.81230576]
[1673272720696,2.32453045,1320.4,1320.3,26.81230576]
[1673272720907,5.15212526,1320.4,1320.3,26.81230576]
[1673272721147,5.15612526,1320.4,1320.3,19.23827576]
[1673272721324,5.15612526,1320.4,1320.3,26.81230576]
[1673272721532,5.15612526,1320.4,1320.3,19.23827576]
[1673272721757,5.15612526,1320.4,1320.3,26.81230576]
[1673272723969,5.15612526,1320.4,1320.3,19.23827576]
[1673272724175,2.8918216,1320.4,1320.3,19.23827576]
[1673272724387,2.8878216,1320.4,1320.3,19.23827576]
[1673272726038,2.8878216,1320.4,1320.3,26.81230576]
[1673272726248,2.8878216,1320.4,1320.3,4.09021576]
[1673272726475,2.8878216,1320.4,1320.3,11.60169064]
[1673272726712,2.8878216,1320.4,1320.3,19.23827576]
[1673272727093,2.8878216,1320.4,1320.3,11.66424576]
[1673272727336,0.05622679,1320.4,1320.3,11.66424576]
[1673272727547,2.88961421,1320.4,1320.3,11.66424576]
[1673272727935,0.05622679,1320.4,1320.3,11.66424576]
[1673272728153,2.88965795,1320.4,1320.3,19.23827576]
[1673272728349,2.88965795,1320.4,1320.3,26.81230576]
[1673272737518,2.88965795,1320.4,1320.3,31.65094034]
[1673272737754,2.88965795,1320.4,1320.3,31.64795799]
[1673272738062,5.15709369,1320.4,1320.3,31.64795799]
[1673272738259,5.16109369,1320.4,1320.3,31.64795799]
[1673272739518,2.32766253,1320.4,1320.3,31.64795799]
[1673272739732,2.32366253,1320.4,1320.3,31.64795799]
[1673272740348,2.32366253,1320.4,1320.3,31.59795799]
[1673272743556,2.37366253,1320.4,1320.3,31.59795799]
[1673272743800,2.32366253,1320.4,1320.3,31.59795799]
[1673272744696,5.15709369,1320.4,1320.3,31.59795799]
[1673272744906,5.16309369,1320.4,1320.3,31.59595799]
[1673272745144,5.16109369,1320.4,1320.3,31.59795799]
[1673272745367,5.16109369,1320.4,1320.3,26.75932341]
[1673272745601,2.89365795,1320.4,1320.3,26.75932341]
[1673272745739,2.88965795,1320.4,1320.3,26.75932341]
[1673272746614,2.89165795,1320.4,1320.3,26.75732341]
[1673272746789,2.88965795,1320.4,1320.3,26.75932341]
[1673272749854,5.23845043,1320.4,1320.3,3.80723341]
[1673272750100,5.95444467,1320.4,1320.3,3.74467829]
[1673272750311,5.95444467,1320.4,1320.2,7.63659512]
[1673272750540,5.95444467,1320.4,1320.3,22.72209]
[1673272750541,6.52274467,1320.4,1320.3,22.72209]
[1673272750844,6.52274467,1320.4,1320.3,22.78464512]
[1673272752887,6.52274467,1320.4,1320.3,0.06255512]
[1673272753100,5.95444467,1320.4,1320.2,19.00861576]
[1673272753461,2.83255452,1320.3,1320.2,26.58321576]
[1673272753620,6.01644467,1320.4,1320.2,26.58321576]
[1673272753830,7.67444467,1320.4,1320.2,3.86021576]
[1673272754082,19.14867,1320.3,1320.1,0.06255512]
[1673272754292,2.83239643,1320.2,1320.0,14.06255512]
[1673272754511,5.09804815,1320.1,1320.0,17.86021576]
[1673272754724,5.10204815,1320.1,1320.0,25.43572576]
[1673272755094,5.10204815,1320.1,1320.0,33.01147576]
[1673272755304,6.82804815,1320.1,1320.0,22.78956512]
[1673272755550,4.857404,1320.1,1320.0,22.78956512]
[1673272755764,4.853404,1320.1,1320.0,22.78956512]
[1673272756256,3.127404,1320.1,1320.0,22.78956512]
[1673272757460,3.964022,1320.1,1320.0,26.58722576]
[1673272757652,2.83006652,1320.1,1320.0,26.81722576]
[1673272757856,1.1318437,1320.1,1320.0,26.81722576]
[1673272763555,1.1318437,1320.1,1320.0,26.81481806]
[1673272764816,2.83006652,1320.2,1320.0,26.81481806]
[1673272765013,2.83006652,1320.2,1320.1,3.79766064]
[1673272765347,2.83006652,1320.2,1320.1,26.52320064]
[1673272765680,2.82606879,1320.2,1320.1,26.58334806]
[1673272768178,2.82606879,1320.2,1320.1,30.02223387]
[1673272769026,1.1318437,1320.2,1320.1,30.02223387]
[1673272772881,1.1318437,1320.2,1320.1,30.25223387]
[1673272773812,14.71587494,1320.4,1320.1,30.25223387]
[1673272773813,1.1318437,1320.3,1320.1,30.25223387]
[1673272774056,1.1318437,1320.3,1320.2,4.02766064]
[1673272774234,1.1318437,1320.3,1320.2,29.79968403]
[1673272774601,1.1318437,1320.3,1320.2,29.85983145]
[1673272774602,2.82945759,1320.3,1320.2,29.85983145]
[1673272775332,1.1318437,1320.3,1320.2,29.85983145]
[1673272775723,2.82945759,1320.3,1320.2,29.85983145]
[1673272777512,2.83145759,1320.3,1320.2,29.85783145]
[1673272777846,2.82945759,1320.3,1320.2,29.85983145]
[1673272778325,1.1318437,1320.3,1320.2,29.85983145]
[1673272783120,2.82945759,1320.3,1320.2,29.85983145]
[1673272783338,1.1318437,1320.3,1320.2,29.85983145]
[1673272786436,2.82945759,1320.3,1320.2,29.85983145]
[1673272786648,1.1318437,1320.3,1320.2,29.85983145]
[1673272787416,2.82945759,1320.3,1320.2,29.85983145]
[1673272787631,1.1318437,1320.3,1320.2,29.85983145]
[1673272790231,1.1318437,1320.3,1320.2,64.85983145]
[1673272795495,2.82945759,1320.3,1320.2,64.85983145]
[1673272796892,2.83145759,1320.3,1320.2,64.85783145]
[1673272797083,2.82945759,1320.3,1320.2,64.85983145]
[1673272800134,2.82945759,1320.3,1320.2,29.85983145]
[1673272800747,2.82945759,1320.3,1320.2,64.85983145]
[1673272801381,2.82945759,1320.3,1320.2,78.85983145]
[1673272802971,2.99145188,1320.3,1320.2,78.85983145]
[1673272805213,1.85960818,1320.3,1320.2,78.85983145]
[1673272805426,2.99241651,1320.3,1320.2,78.85983145]
[1673272805634,1.85960818,1320.3,1320.2,78.85983145]
[1673272806696,4.12540736,1320.3,1320.2,78.85983145]
[1673272811596,2.42779347,1320.3,1320.2,78.85983145]
[1673272813215,5.26004244,1320.3,1320.2,40.80902455]
[1673272813368,5.26404244,1320.3,1320.2,40.80902455]
[1673272813579,5.26404244,1320.3,1320.2,75.80902455]
[1673272814376,2.43179347,1320.3,1320.2,75.80902455]
[1673272814523,2.42779347,1320.3,1320.2,75.80902455]
[1673272815154,2.42779347,1320.3,1320.2,78.91299433]
[1673272815418,4.128663,1320.3,1320.2,78.91299433]
[1673272815576,4.1286418,1320.3,1320.2,78.91299433]
[1673272815786,4.12864879,1320.3,1320.2,78.91299433]
[1673272816267,4.12864879,1320.3,1320.2,80.62299433]
[1673272816668,2.42779347,1320.3,1320.2,80.62299433]
[1673272816882,2.42779347,1320.3,1320.2,77.51902455]
[1673272817086,5.26004244,1320.3,1320.2,77.51902455]
[1673272817317,5.26404244,1320.3,1320.2,77.51902455]
[1673272819247,5.26159447,1320.3,1320.2,77.51902455]
[1673272819875,2.99579529,1320.3,1320.2,54.79522455]
[1673272820083,2.99179529,1320.3,1320.2,54.79522455]
[1673272820301,2.99179529,1320.3,1320.2,53.08522455]
[1673272820607,7.52572808,1320.3,1320.2,60.42982455]
[1673272820820,5.26274863,1320.3,1320.2,52.85522455]
[1673272821052,5.26274863,1320.3,1320.2,60.42982455]
[1673272821353,7.52938451,1320.3,1320.2,60.42982455]
[1673272821723,5.26274863,1320.3,1320.2,60.42982455]
[1673272822404,5.26274863,1320.3,1320.2,52.85522455]
[1673272822597,5.26274863,1320.3,1320.2,60.42982455]
[1673272823621,5.26274863,1320.3,1320.2,25.42982455]
[1673272823963,5.26274863,1320.3,1320.2,40.57902455]
[1673272824187,5.26274863,1320.3,1320.2,40.52902455]
[1673272824580,6.39677654,1320.3,1320.2,40.52902455]
[1673272824791,6.39677654,1320.3,1320.2,48.35319223]
[1673272825994,4.13038183,1320.3,1320.2,48.35319223]
[1673272826203,4.12638183,1320.3,1320.2,48.36103856]
[1673272826357,5.25968118,1320.3,1320.2,48.36103856]
[1673272826721,5.26368118,1320.3,1320.2,48.36103856]
[1673272826886,4.13038183,1320.3,1320.2,48.36103856]
[1673272827097,4.12638183,1320.3,1320.2,48.36103856]
[1673272827721,6.39277654,1320.3,1320.2,48.36103856]
[1673272827928,6.39677654,1320.3,1320.2,33.19227088]
[1673272828883,6.39677654,1320.3,1320.2,40.76687088]
[1673272831345,6.39677654,1320.3,1320.2,33.19227088]
[1673272832773,6.39677654,1320.3,1320.2,56.98337937]
[1673272832774,1.13334524,1320.3,1320.2,56.98337937]
[1673272833022,1.70001785,1320.4,1320.3,2.2611774]
[1673272833023,0.01,1320.4,1320.3,2.2611774]
[1673272833238,2.89942727,1320.6,1320.3,31.63433736]
[1673272833558,2.30287566,1320.7,1320.5,49.22492359]
[1673272833559,2.93555415,1320.7,1320.5,49.22492359]
[1673272833719,1.13340942,1320.6,1320.5,50.00664738]
[1673272833924,1.13340942,1320.6,1320.5,64.57859034]
[1673272834148,1.13340942,1320.6,1320.5,65.38203511]
[1673272834361,1.13340942,1320.6,1320.5,58.97349574]
[1673272834362,3.96676663,1320.6,1320.5,58.97349574]
[1673272834600,2.83241182,1320.6,1320.5,28.45197574]
[1673272834764,2.83241182,1320.6,1320.5,36.02485574]
[1673272834982,1.70001785,1320.6,1320.5,36.02485574]
[1673272835192,2.83242186,1320.6,1320.5,51.17061574]
[1673272835871,1.13240401,1320.6,1320.5,51.17061574]
[1673272837176,1.13240401,1320.6,1320.5,48.17061574]
[1673272838023,2.86854874,1320.7,1320.5,48.17061574]
[1673272838232,2.86854874,1320.7,1320.6,3.79766064]
[1673272838546,2.86854874,1320.7,1320.6,26.51459064]
[1673272838860,2.86854874,1320.7,1320.6,26.57473806]
[1673272840660,1.16853089,1320.7,1320.6,26.57473806]
[1673272841650,1.16853089,1320.7,1320.6,11.43011806]
[1673272841821,4.00289351,1320.7,1320.6,3.85780806]
[1673272842169,4.00289351,1320.7,1320.6,3.79766064]
[1673272843017,4.00289351,1320.7,1320.6,7.57231]
[1673272843323,4.00289351,1320.7,1320.6,15.20476742]
[1673272843921,5.52521955,1320.7,1320.4,7.57343]
[1673272844133,27.73065307,1320.7,1320.6,0.02]
[1673272844350,27.73065307,1320.7,1320.3,2.2611774]
[1673272844351,40.27894747,1320.7,1320.3,2.2611774]
[1673272844670,1.13076993,1320.4,1320.3,2.2611774]
[1673272845071,1.69615489,1320.5,1320.3,2.2611774]
[1673272845072,6.82692482,1320.5,1320.3,2.2611774]
[1673272845287,2.82692482,1320.4,1320.3,2.2611774]
[1673272845715,3.39522482,1320.4,1320.3,2.2611774]
[1673272846693,2.26445489,1320.4,1320.3,2.2611774]
[1673272847529,2.26445489,1320.4,1320.3,9.8352074]
[1673272847840,2.26445489,1320.4,1320.3,9.9312074]
[1673272848782,3.39511431,1320.4,1320.3,9.9312074]
[1673272849438,3.39511431,1320.4,1320.3,17.5052374]
[1673272849576,2.82681431,1320.4,1320.3,17.5052374]
[1673272850765,4.11583094,1320.4,1320.3,17.5052374]
[1673272851740,4.11583094,1320.4,1320.3,9.9312074]
[1673272852122,2.98517152,1320.4,1320.3,3.3571774]
[1673272852467,2.98517152,1320.4,1320.3,3.2611774]
[1673272852692,5.24671138,1320.4,1320.3,3.2611774]
[1673272852862,2.99117152,1320.4,1320.3,3.2611774]
[1673272853066,2.98517152,1320.4,1320.3,3.2611774]
[1673272853865,1.69615489,1320.4,1320.3,3.2611774]
[1673272854076,2.82663746,1320.4,1320.3,3.2611774]
[1673272855643,1.69615489,1320.4,1320.3,3.2611774]
[1673272855810,2.82666713,1320.4,1320.3,3.2611774]
[1673272856019,1.13051224,1320.4,1320.3,10.8352074]
[1673272856260,2.82666713,1320.4,1320.3,3.3571774]
[1673272856471,1.13051224,1320.4,1320.3,3.2611774]
[1673272856686,1.13051224,1320.4,1320.3,18.4092374]
[1673272856901,1.13051224,1320.4,1320.3,18.5052374]
[1673272857316,1.13051224,1320.4,1320.3,10.9312074]
[1673272857918,1.13051224,1320.4,1320.3,18.5052374]
[1673272858246,6.31199475,1320.5,1320.3,26.0792674]
[1673272858247,3.46096713,1320.5,1320.3,26.0792674]
[1673272858454,3.46096713,1320.5,1320.3,36.75012451]
[1673272858455,1.13051224,1320.5,1320.3,36.75012451]
[1673272858649,2.82666713,1320.5,1320.3,36.75012451]
[1673272860702,1.13051224,1320.5,1320.4,3.79766064]
[1673272860855,10.78126713,1320.6,1320.4,26.51804064]
[1673272861065,2.83266713,1320.6,1320.4,31.04628509]
[1673272861292,1.13051224,1320.6,1320.4,31.04628509]
[1673272861957,2.89266713,1320.7,1320.5,11.37054064]
[1673272862145,2.82666713,1320.7,1320.6,26.51459064]
[1673272862325,2.82666713,1320.7,1320.6,26.61059064]
[1673272862542,2.82678904,1320.7,1320.6,26.61059064]
[1673272863703,1.69615489,1320.7,1320.6,19.03828064]
[1673272864058,2.82678922,1320.7,1320.6,19.03828064]
[1673272864602,2.82678922,1320.7,1320.6,26.61059064]
[1673272864973,2.82678922,1320.7,1320.6,19.03828064]
[1673272865284,2.82678922,1320.7,1320.6,11.46597064]
[1673272865639,1.69615489,1320.7,1320.6,19.03828064]
[1673272865874,3.95769475,1320.7,1320.6,19.03828064]
[1673272866185,3.95769475,1320.7,1320.6,19.03586475]
[1673272867485,1.69615489,1320.7,1320.6,19.03586475]
[1673272867699,3.95769475,1320.7,1320.6,19.03586475]
[1673272867910,3.95769475,1320.7,1320.6,26.60817475]
[1673272868125,1.69615489,1320.7,1320.6,26.60817475]
[1673272868556,1.69615489,1320.7,1320.6,19.03586475]
[1673272868750,2.82677096,1320.7,1320.6,26.60817475]
[1673272869208,2.82677096,1320.7,1320.6,19.03586475]
[1673272869523,1.69615489,1320.7,1320.6,19.03586475]
[1673272869735,1.69615489,1320.7,1320.6,26.60817475]
[1673272869736,2.82676318,1320.7,1320.6,26.60817475]
[1673272869897,1.69615489,1320.7,1320.6,19.03586475]
[1673272871104,2.82679561,1320.7,1320.6,19.03586475]
[1673272871628,2.82685575,1320.7,1320.6,26.60817475]
[1673272872366,2.82685575,1320.7,1320.6,19.03586475]
[1673272872520,2.82685575,1320.7,1320.6,26.60817475]
[1673272873523,1.69615489,1320.7,1320.6,19.03586475]
[1673272874039,1.69615489,1320.7,1320.6,26.60817475]
[1673272874358,2.826959,1320.7,1320.6,26.60817475]
[1673272875258,3.08615838,1320.7,1320.6,26.60817475]
[1673272875677,1.95535427,1320.7,1320.6,26.60817475]
[1673272876275,1.39004947,1320.7,1320.6,30.02622823]
[1673272877500,9.38e-06,1320.7,1320.6,30.02622823]
[1673272877715,9.38e-06,1320.7,1320.6,30.25622823]
[1673272882236,0.09700382,1320.8,1320.7,24.51021062]
[1673272882462,0.09700382,1320.8,1320.7,28.40387126]
[1673272882672,0.09700382,1320.8,1320.7,32.36629473]
[1673272883062,1.22785391,1320.8,1320.7,32.36629473]
[1673272883273,1.22785391,1320.8,1320.7,28.40387126]
[1673272885286,1.22785391,1320.8,1320.7,26.60888064]
[1673272886229,1.22785391,1320.8,1320.7,26.60315936]
[1673272886487,1.22785391,1320.8,1320.7,26.60515936]
[1673272887557,1.22785391,1320.8,1320.7,26.59943808]
[1673272888349,1.22785391,1320.8,1320.7,26.59371721]
[1673272890252,1.22785391,1320.8,1320.7,30.36938977]
[1673272890906,0.09700382,1320.8,1320.7,30.36938977]
[1673272891273,0.09700382,1320.8,1320.7,30.3636566]
[1673272891932,1.22785391,1320.8,1320.7,30.3636566]
[1673272892221,1.22785391,1320.8,1320.7,26.58224853]
[1673272892447,1.22785391,1320.8,1320.7,26.57665204]